Cogmind - Beta 13 @@@ ROGUE MODE // 2024.05.22 @ 16:14:32 Player: Lunace Result: Destroyed by L-41 Fighter with Axe Performance ------------- Evolutions (5) 2500 Regions Visited (16) 3200 Robots Destroyed (193) 965 Value Destroyed (7784) 7784 Prototype IDs (46) 920 Alien Tech Used (1) 200 Bonus (2510) 2510 TOTAL SCORE: 18079 Bonus ------- High Alert Combat Kills 1732 Aligned with FarCom 300 Met Data Miner 300 Met Imprinter 300 Friendly Fire -122 Cogmind --------- Core Integrity 0/1000 Matter 172/300 Energy 417/530 System Corruption 14% Temperature Cool (0) Movement Treading (250) Ox1 Location -5/Factory Parts ------- > --- POWER (2) -------- Neutrino Core Neutrino Core > --- PROPULSION (4) --- Armored Medium Treads Armored Medium Treads Armored Leg > --- UTILITY (9) ------ Advanced Cooling System Large Storage Unit Advanced Signal Interpreter > --- WEAPON (3) ------- KE Penetrator Enhanced Gauss Cannon > --- INVENTORY (15) --- Micro Fission Core Advanced Sensor Array Improved System Restoration Module Hacking Drone Bay (1/1) Improved Remote Datajack Improved Plasma Cutter Spear GAL Module Peak State ------------ > --- POWER ------------ Neutrino Core Micro Fission Core > --- PROPULSION ------- Armored Leg Armored Leg Armored Leg Armored Leg > --- UTILITY ---------- Advanced Cooling System Large Storage Unit Advanced Signal Interpreter Kinecellerator Improved Transmission Jammer Hardened Heavy Armor Plating Improved Corruption Screen Hacking Drone Bay > --- WEAPON ----------- Hypervelocity Gauss Rifle KE Penetrator Enhanced Gauss Cannon > --- INVENTORY -------- Neutrino Core Improved Treads Armored Medium Treads Armored Medium Treads Advanced Sensor Array Improved System Restoration Module Mobile Refinery Mk. CCLXVII KE Penetrator Improved Remote Datajack Improved Plasma Cutter Spear GAL Module [Rating: 100] Favorites ----------- Power Neutrino Core Engine Ion Engine Power Core Neutrino Core Reactor Light Particle Reactor Propulsion Armored Leg Treads Advanced Treads Leg Armored Leg Utility Large Storage Unit Device Hacking Drone Bay Storage Large Storage Unit Processor Corruption Screen Hackware System Shield Protection Improved Weapon Shielding Weapon Mini Grenade Launcher Energy Gun EM Pulse Gun Ballistic Gun Gauss Rifle Ballistic Cannon Assault Cannon Launcher Mini Grenade Launcher Slashing Weapon Longsword +1 Build | -11 -10 -10 -10 -9 -8 -7 -7 -7 -7 -6 -6 -6 -6 -6 -5 -5 ------- Run | Yrd Mat Min Exi Min Mat Fac Low Low Zio Pro Fac Low Low Dat Pro Fac Slots Evolved 10 | . . . . . 4 2 . . . . 2 . . . . 2 Power 1 | . . . . . . . . . . . 1 . . . . . Propulsion 2 | . . . . . 2 . . . . . . . . . . . Utility 7 | . . . . . 2 2 . . . . 1 . . . . 2 Weapon . | . . . . . . . . . . . . . . . . . Parts Attached 166 | 8 3 8 2 . 25 21 2 3 3 11 18 3 1 . 3 55 Power 20 | 1 1 2 . . 3 2 . . 1 . 2 . . . . 8 Engine 5 | 1 1 2 . . . . . . . . . . . . . 1 Core 12 | . . . . . 3 2 . . 1 . 2 . . . . 4 Reactor 3 | . . . . . . . . . . . . . . . . 3 Propulsion 35 | 2 1 2 . . 9 6 . . 1 1 5 . . . . 8 Treads 14 | 2 1 2 . . 5 . . . . . . . . . . 4 Leg 21 | . . . . . 4 6 . . 1 1 5 . . . . 4 Wheel . | . . . . . . . . . . . . . . . . . Hover . | . . . . . . . . . . . . . . . . . Flight . | . . . . . . . . . . . . . . . . . Utility 77 | 2 1 2 2 . 8 11 2 1 1 9 9 1 . . 1 27 Device 35 | 1 1 2 . . 3 4 . . 1 6 3 1 . . 1 12 Storage 4 | 1 . . 2 . . 1 . . . . . . . . . . Processor 11 | . . . . . 3 2 1 . . . 2 . . . . 3 Hackware 4 | . . . . . 2 . . . . . 2 . . . . . Protection 23 | . . . . . . 4 1 1 . 3 2 . . . . 12 Artifact . | . . . . . . . . . . . . . . . . . Weapon 34 | 3 . 2 . . 5 2 . 2 . 1 2 2 1 . 2 12 Energy Gun 2 | 2 . . . . . . . . . . . . . . . . Energy Cannon . | . . . . . . . . . . . . . . . . . Ballistic Gun 16 | 1 . 1 . . 4 1 . . . 1 . . . . 1 7 Ballistic Cannon 3 | . . 1 . . . . . . . . . . . . . 2 Launcher 8 | . . . . . . 1 . 2 . . 1 1 . . 1 2 Special Weapon . | . . . . . . . . . . . . . . . . . Impact Weapon . | . . . . . . . . . . . . . . . . . Slashing Weapon 5 | . . . . . 1 . . . . . 1 1 1 . . 1 Piercing Weapon . | . . . . . . . . . . . . . . . . . Special Melee Weapon . | . . . . . . . . . . . . . . . . . Unidentified Prototypes 3 | . . . . . 1 . . 1 1 . . . . . . . Parts Lost 19 | . . . . . 1 4 . . . . . . . . . 14 Power 7 | . . . . . 1 2 . . . . . . . . . 4 Propulsion 1 | . . . . . . . . . . . . . . . . 1 Utility 6 | . . . . . . 2 . . . . . . . . . 4 Weapon 5 | . . . . . . . . . . . . . . . . 5 Highest Loss Streak 5 | . . . . . 1 2 . . . . . . . . . 5 To Critical Strikes 1 | . . . . . . . . . . . . . . . . 1 Average Slot Usage (%) 94 | . 98 100 100 100 98 94 92 91 88 91 92 97 99 93 95 92 Engine 2 | . 13 14 14 14 2 . . . . . . . . . . . Core 5 | . . . . . 6 7 7 7 7 7 6 12 12 12 12 4 Reactor 1 | . . . . . . . . . . . . . . . . 5 Treads 6 | . 27 28 28 28 31 . . . . . . . . . . . Leg 20 | . . . . . 4 29 30 28 28 28 25 25 25 25 25 21 Device 9 | . 14 14 14 14 17 13 . . . 4 7 6 6 6 9 12 Storage 7 | . 14 14 14 14 9 7 7 7 7 7 6 6 6 6 6 5 Processor 12 | . . . . . 2 9 15 14 14 14 14 18 18 18 18 18 Hackware 1 | . . . . . 5 7 1 . . . 3 . . . . . Protection 6 | . . . . . . 2 13 13 10 9 9 12 12 12 8 8 Ballistic Gun 4 | . . 13 14 14 8 1 . . . 4 6 6 5 . 1 4 Ballistic Cannon 1 | . . 13 14 14 1 . . . . . . . . . . . Launcher 7 | . . . . . . 5 7 13 14 14 10 10 11 6 7 7 Slashing Weapon 3 | . . . . . 7 7 7 7 7 2 1 . . 6 4 2 Naked Turns . | . . . . . . . . . . . . . . . . . Heaviest Build 87 | 15 15 19 34 34 37 55 53 54 55 61 64 64 64 62 64 87 Greatest Support 84 | 40 40 44 44 44 84 80 80 80 80 78 78 64 64 64 64 77 Greatest Overweight (x) 2 | . . . . . . . . . . . . . . . . 2 Average Overweight (x) . | . . . . . . . . . . . . . . . . . Largest Inventory Capacity 15 | 8 8 8 15 15 15 15 15 15 15 15 15 15 15 15 15 15 Average Capacity 14 | 7 8 8 9 15 15 15 15 15 15 15 15 15 15 15 15 15 Most Carried 15 | 2 3 8 10 14 13 12 13 12 15 14 13 14 14 14 15 15 Average Carried 11 | 1 2 7 8 13 8 9 10 10 12 13 11 13 13 14 13 12 Final Capacity 15 | 8 8 8 15 15 15 15 15 15 15 15 15 15 15 15 15 15 Final Carried 14 | 2 3 8 10 14 10 12 11 10 14 13 12 13 14 14 14 8 Class Distribution -------------------- 74% | Mutant 13% | Skirmisher 8% | Bomber Dominant Class ---------------- Mutant | -10/Materials Mutant | -10/Mines Mutant | -10/Exiles Mutant | -9/Mines Mutant | -8/Materials Mutant | -7/Factory Mutant | -7/Lower Caves Mutant | -7/Lower Caves Mutant | -7/Zion Bomber | -6/Proximity Caves Bomber | -6/Factory Skirmisher | -6/Lower Caves Skirmisher | -6/Lower Caves Mutant | -6/Data Miner Mutant | -5/Proximity Caves Mutant | -5/Factory Resources | -11 -10 -10 -10 -9 -8 -7 -7 -7 -7 -6 -6 -6 -6 -6 -5 -5 ----------- Run | Yrd Mat Min Exi Min Mat Fac Low Low Zio Pro Fac Low Low Dat Pro Fac Matter Collected 4765 | 280 . 258 . 50 255 361 19 207 30 630 214 154 10 . 100 2197 Remotely . | . . . . . . . . . . . . . . . . . Salvage Created 7053 | 35 . 120 . . 713 411 17 132 . 800 454 116 44 . 166 4045 Parts 356 | 7 . 9 . . 39 13 4 5 . 23 29 7 5 . 21 194 Haulers Intercepted 3 | . . . . . . . . . . 1 . . . . . 2 Recyclers Shooed 6 | . . . . . 2 1 . . . . . . . . . 3 Parts Field Recycled . | . . . . . . . . . . . . . . . . . Retrieved Matter . | . . . . . . . . . . . . . . . . . Parts Self-Destructed 43 | . . . . . . . 2 3 4 12 . 3 2 . 17 . Prevented 4 | . . . . . . . . . . . . 4 . . . . Kills | -11 -10 -10 -10 -9 -8 -7 -7 -7 -7 -6 -6 -6 -6 -6 -5 -5 ------- Run | Yrd Mat Min Exi Min Mat Fac Low Low Zio Pro Fac Low Low Dat Pro Fac Combat Hostiles Destroyed 152 | . . 4 . . 14 8 3 4 . 25 7 5 1 . 9 72 Melee 29 | . . . . . 12 1 . . . . 1 1 1 . . 13 Guns 33 | . . 3 . . 2 . . . . 2 1 . . . 1 24 Cannons 6 | . . 1 . . . . . . . . . . . . . 5 AOE 84 | . . . . . . 7 3 4 . 23 5 4 . . 8 30 Classes Destroyed 18 | 1 . 1 . . 6 2 . . . 5 . . . . . 3 Worker 3 | . . . . . . . . . . . . . . . . 3 Builder 9 | . . . . . . 1 . . . . 1 . . . . 7 Tunneler 4 | 2 . . . . . 2 . . . . . . . . . . Hauler 3 | . . . . . . . . . . 1 . . . . . 2 Recycler 12 | . . . . . 1 3 . . . . 2 . . . . 6 Mechanic 1 | . . . . . . . . . . 1 . . . . . . Operator 1 | . . . . . . . . . . . . . . . . 1 Watcher 8 | . . . . . 2 1 . . . . 2 . . . . 3 Swarmer 48 | . . . . . 4 3 3 . . 4 3 4 . . 8 19 Saboteur 1 | . . . . . . . . . . . . . . . . 1 Grunt 50 | . . 4 . . 4 4 . 3 . 10 3 . . . . 22 Brawler 9 | . . . . . 1 . . 1 . 2 . . . . . 5 Duelist 4 | . . . . . . . . . . 1 . . . . . 3 Protector 3 | . . . . . . . . . . 2 . . . . . 1 Sentry 10 | . . . . . 3 . . . . 1 1 . . . 1 4 Specialist 2 | . . . . . . . . . . 2 . . . . . . Hunter 4 | . . . . . 2 . . . . 1 . 1 . . . . Programmer 21 | . . . . . . 1 . . . 2 . . 1 . . 17 Best Kill Streak 11 | 1 . 2 . . 4 7 3 4 . 11 5 4 1 . 4 9 Combat Bots Only 11 | . . 2 . . 4 4 3 4 . 11 3 4 1 . 4 8 Max Kills in Single Turn 4 | 1 . 1 . . 1 3 2 2 . 4 2 4 1 . 4 4 Gunslinging . | . . . . . . . . . . . . . . . . . Exploded 4 | . . . . . . 2 2 2 . 3 1 4 . . 4 4 Melee 1 | . . . . . 1 1 . . . . 1 1 1 . . 1 Uniques/NPCs Destroyed . | . . . . . . . . . . . . . . . . . Combat | -11 -10 -10 -10 -9 -8 -7 -7 -7 -7 -6 -6 -6 -6 -6 -5 -5 -------- Run | Yrd Mat Min Exi Min Mat Fac Low Low Zio Pro Fac Low Low Dat Pro Fac Hostile Shots Fired 609 | . . 26 . 2 59 17 14 1 . 70 12 32 2 . 33 341 Missed 207 | . . 8 . . 12 6 7 . . 31 7 12 1 . 15 108 Damage Taken 9298 | . . 234 . 30 618 631 134 15 . 847 173 296 16 . 361 5943 Core 1383 | . . 29 . . 55 68 . . . 97 . . . . 114 1020 Absorbed by Shields 112 | . . . . . . . . . . 108 4 . . . . . Redirected to Shielding 128 | . . . . . . . 11 . . 26 8 42 . . . 41 Ignored by Resistances 23 | . . . . . . 23 . . . . . . . . . . Regen/Repaired (Parts) 183 | . . . . . . 143 . . . . . . . . . 40 Core Remaining (%) 88 | 100 . . . 88 90 . . . . 76 . . . . 86 . Volleys Fired 225 | 3 . 16 . . 20 14 4 3 . 22 9 1 . . 5 128 Largest 3 | 2 . 2 . . 1 1 1 2 . 3 3 2 . . 2 3 Hottest 123 | 80 . 69 . . 28 30 30 60 . 88 88 60 . . 60 123 Shots Fired 485 | 6 . 32 . . 20 14 4 6 . 64 15 2 . . 8 314 Gun 265 | 6 . 16 . . 20 . . . . 20 2 . . . 2 199 Cannon 81 | . . 16 . . . . . . . . . . . . . 65 Launcher 139 | . . . . . . 14 4 6 . 44 13 2 . . 6 50 Special . | . . . . . . . . . . . . . . . . . Kinetic 340 | . . 32 . . 20 . . . . 20 2 . . . 2 264 Thermal . | . . . . . . . . . . . . . . . . . Explosive 139 | . . . . . . 14 4 6 . 44 13 2 . . 6 50 Electromagnetic 6 | 6 . . . . . . . . . . . . . . . . Robot Hit Streak 12 | 3 . 8 . . 9 3 1 . . 12 3 3 . . 5 12 Robot Miss Streak 6 | 2 . 3 . . 2 3 3 . . 3 2 . . . . 6 Penetration Max 2 | . . . . . . . . . . 1 . . . . . 2 Secondary Targets 2 | . . . . . . . . . . . . . . . . 2 Max Gunslinging Chain 1 | . . . . . . . . . . . . . . . . 1 Shots Hit Robots 344 | 3 . 22 . . 45 9 1 . . 37 8 2 1 . 2 214 Core Hits 385 | 2 . 6 . . 19 21 5 8 . 94 21 4 1 . 14 190 Critical Kills 14 | . . . . . . . . . . . . . . . 1 13 Critical Parts Destroyed 19 | . . . . . . . . . . 1 . . . . 1 17 Critical Strikes 53 | 1 . . . . 4 . . . . 1 1 . . . 2 44 Destroy 34 | . . . . . . . . . . 1 . . . . 2 31 Blast 10 | . . . . . . . . . . . . . . . . 10 Corrupt 1 | 1 . . . . . . . . . . . . . . . . Sever 8 | . . . . . 4 . . . . . 1 . . . . 3 Melee Attacks 100 | . . . . . 32 6 . 1 1 . 5 1 1 . . 53 Impact . | . . . . . . . . . . . . . . . . . Slashing 100 | . . . . . 32 6 . 1 1 . 5 1 1 . . 53 Piercing . | . . . . . . . . . . . . . . . . . Sneak Attacks 11 | . . . . . 2 2 . . . . 1 . . . . 6 Combat Hostiles . | . . . . . . . . . . . . . . . . . Follow-up Attacks . | . . . . . . . . . . . . . . . . . Damage Inflicted 21438 | 38 . 486 . . 1744 1955 236 276 . 3520 1190 269 49 . 564 11111 Guns 4144 | 38 . 216 . . 277 . . . . 299 36 . . . 12 3266 Cannons 1985 | . . 270 . . . . . . . . . . . . . 1715 Explosions 10831 | . . . . . . 1625 236 276 . 3221 916 229 . . 552 3776 Melee 4442 | . . . . . 1467 330 . . . . 238 40 49 . . 2318 Ramming 36 | . . . . . . . . . . . . . . . . 36 Kinetic 6091 | . . 486 . . 277 . . . . 299 36 . . . 12 4981 Thermal . | . . . . . . . . . . . . . . . . . Explosive 10831 | . . . . . . 1625 236 276 . 3221 916 229 . . 552 3776 Electromagnetic 38 | 38 . . . . . . . . . . . . . . . . Impact . | . . . . . . . . . . . . . . . . . Slashing 4442 | . . . . . 1467 330 . . . . 238 40 49 . . 2318 Piercing . | . . . . . . . . . . . . . . . . . Highest Corruption 14 | . 2 2 2 2 . . . . . . . . . . . 14 Average Corruption 3 | . 2 2 2 2 . . . . . . . . . . . 13 Corruption Purged . | . . . . . . . . . . . . . . . . . Corruption Blocked 28 | . . . . . . 1 . . . . . . 1 . . 26 Effects 27 | . . 15 2 3 . . . . . . . . . . . 7 Message Errors 9 | . . 5 . 1 . . . . . . . . . . . 3 Matter Fused 9 | . . 4 1 1 . . . . . . . . . . . 3 Energy Discharges 4 | . . 3 . 1 . . . . . . . . . . . . Data Loss (minor) 5 | . . 3 1 . . . . . . . . . . . . 1 Overload Shots . | . . . . . . . . . . . . . . . . . Overflow Damage 847 | . . 9 . . 135 246 . . . 10 37 36 . . 5 369 Projectiles 57 | . . 9 . . . . . . . . . . . . . 48 Explosions 361 | . . . . . . 186 . . . 10 37 36 . . 5 87 Melee 429 | . . . . . 135 60 . . . . . . . . . 234 Knockbacks 24 | . . 6 . . . . . . . . . . . . . 18 Impact . | . . . . . . . . . . . . . . . . . Kinetic 22 | . . 6 . . . . . . . . . . . . . 16 Secondary 2 | . . . . . . . . . . . . . . . . 2 Self-Inflicted Damage 804 | . . . . . . 63 25 . . 265 121 . . . . 330 Shots 26 | . . . . . . 3 1 . . 8 2 . . . . 12 Rammed . | . . . . . . . . . . . . . . . . . Targets Rammed 1 | . . . . . . . . . . . . . . . . 1 Kicked 1 | . . . . . . . . . . . . . . . . 1 Crushed . | . . . . . . . . . . . . . . . . . Highest Temperature 215 | 36 . 188 . . 3 . . 36 . 215 6 3 . . 6 147 Average Temperature 55 | 18 . 70 . . 3 . . 17 . 85 3 1 . . 3 30 Received Heat Transfer 1323 | . . 132 . 9 198 27 9 9 . 101 9 12 . . 45 772 Siege Activations . | . . . . . . . . . . . . . . . . . Robots Corrupted . | . . . . . . . . . . . . . . . . . Combat Hostiles . | . . . . . . . . . . . . . . . . . Parts Fried 1 | . . . . . . . . . . . . 1 . . . . Impact Corruptions . | . . . . . . . . . . . . . . . . . Robots Melted . | . . . . . . . . . . . . . . . . . Combat Hostiles . | . . . . . . . . . . . . . . . . . Parts Melted 1 | . . . . . . . . . . . . . . . . 1 Heat Transferred . | . . . . . . . . . . . . . . . . . Parts Sabotaged 4 | . . . . . . . . . . . . . . . . 4 Parts Stolen . | . . . . . . . . . . . . . . . . . Parts Stripped . | . . . . . . . . . . . . . . . . . Power Chain Reactions . | . . . . . . . . . . . . . . . . . Alert | -11 -10 -10 -10 -9 -8 -7 -7 -7 -7 -6 -6 -6 -6 -6 -5 -5 ------- Run | Yrd Mat Min Exi Min Mat Fac Low Low Zio Pro Fac Low Low Dat Pro Fac Peak Influence 1873 | 10 6 68 . . 300 285 . . . . 441 . . . . 1873 Initial 217 | . 6 1 . . . 91 . . . . 217 . . . . 69 Average 335 | 3 6 17 . . 114 115 . . . . 230 . . . . 666 Maximum Alert Level 5 | . . . . . 1 1 . . . . 2 . . . . 5 Low Security (%) 56 | 100 100 100 . 100 84 75 . . . . 19 . . . . 29 Level 1 18 | . . . . . 15 24 . . . . 76 . . . . 8 Level 2 9 | . . . . . . . . . . . 4 . . . . 22 Level 3 5 | . . . . . . . . . . . . . . . . 13 Level 4 4 | . . . . . . . . . . . . . . . . 11 Level 5 5 | . . . . . . . . . . . . . . . . 13 High Security . | . . . . . . . . . . . . . . . . . Max Security . | . . . . . . . . . . . . . . . . . Squads Dispatched 26 | . 1 1 . . 1 2 . . . 1 4 . . . . 16 Investigation 7 | . 1 1 . . 1 1 . . . . 2 . . . . 1 Extermination 9 | . . . . . . 1 . . . . 1 . . . . 7 Reinforcement 2 | . . . . . . . . . . . 1 . . . . 1 Assault 8 | . . . . . . . . . . 1 . . . . . 7 Garrison . | . . . . . . . . . . . . . . . . . Intercept . | . . . . . . . . . . . . . . . . . Searches Triggered . | . . . . . . . . . . . . . . . . . Construction Impeded . | . . . . . . . . . . . . . . . . . Haulers Reinforced 1 | . . . . . . . . . . . . . . . . 1 Active Scanning Responses . | . . . . . . . . . . . . . . . . . Cargo Convoy Interrupts . | . . . . . . . . . . . . . . . . . Stealth | -11 -10 -10 -10 -9 -8 -7 -7 -7 -7 -6 -6 -6 -6 -6 -5 -5 --------- Run | Yrd Mat Min Exi Min Mat Fac Low Low Zio Pro Fac Low Low Dat Pro Fac Distress Signals 7 | . . . . . 4 1 . . . . 1 . . . . 1 Communications Jammed 45 | . . . . . . . . . . . . . . . . 45 Distress Signals 45 | . . . . . . . . . . . . . . . . 45 Times Spotted 212 | . 1 5 . 2 22 13 4 4 . 29 10 6 1 . 9 106 Peak Tracking Total 10 | . 1 2 . 2 4 4 4 4 . 6 3 4 1 . 5 10 Tactical Retreats 10 | . . 1 . . . 1 1 . . 1 . 1 . . . 5 Traps | -11 -10 -10 -10 -9 -8 -7 -7 -7 -7 -6 -6 -6 -6 -6 -5 -5 ------- Run | Yrd Mat Min Exi Min Mat Fac Low Low Zio Pro Fac Low Low Dat Pro Fac Traps Triggered 9 | . 2 . . . 2 3 . . . . . . . . . 2 Indirectly . | . . . . . . . . . . . . . . . . . Trap Hack Attempts . | . . . . . . . . . . . . . . . . . Triggered . | . . . . . . . . . . . . . . . . . Disarmed . | . . . . . . . . . . . . . . . . . Reprogrammed . | . . . . . . . . . . . . . . . . . Reused . | . . . . . . . . . . . . . . . . . Traps Extracted . | . . . . . . . . . . . . . . . . . Installed 2 | . . . . . 2 . . . . . . . . . . . Triggered 2 | . . . . . . . . . . . . 2 . . . . Most Traps Carried 4 | . . . . 4 4 . . . . . . . . . . . Machines | -11 -10 -10 -10 -9 -8 -7 -7 -7 -7 -6 -6 -6 -6 -6 -5 -5 ---------- Run | Yrd Mat Min Exi Min Mat Fac Low Low Zio Pro Fac Low Low Dat Pro Fac Machines Disabled 33 | . . . . . 1 6 . . . 1 6 . . . . 19 Max in Single Turn 4 | . . . . . 1 3 . . . 1 4 . . . . 4 Garrison Access 1 | . . . . . . . . . . . . . . . . 1 Machines Repaired . | . . . . . . . . . . . . . . . . . Machines Dismantled . | . . . . . . . . . . . . . . . . . Machines Sabotaged . | . . . . . . . . . . . . . . . . . Overloaded Fab Kills . | . . . . . . . . . . . . . . . . . Hacking | -11 -10 -10 -10 -9 -8 -7 -7 -7 -7 -6 -6 -6 -6 -6 -5 -5 --------- Run | Yrd Mat Min Exi Min Mat Fac Low Low Zio Pro Fac Low Low Dat Pro Fac Machines Accessed 37 | . 1 1 2 . 4 10 1 . . . 5 . . 3 . 10 Terminals 14 | . 1 . . . 4 5 . . . . 1 . . . . 3 Fabricators 5 | . . . . . . 1 . . . . 1 . . . . 3 Repair Stations 5 | . . . . . . 2 . . . . 1 . . . . 2 Recycling Units 3 | . . . . . . 1 . . . . 2 . . . . . Scanalyzers . | . . . . . . . . . . . . . . . . . Garrison Access 3 | . . . . . . 1 . . . . . . . . . 2 Total Hacks 110 | . 5 1 2 . 18 26 1 . . . 18 . . 21 . 18 Successful 60 | . . 1 2 . 10 9 1 . . . 10 . . 21 . 6 Failed 50 | . 5 . . . 8 17 . . . . 8 . . . . 12 Catastrophic 8 | . . . . . . 5 . . . . 1 . . . . 2 Database Lockouts . | . . . . . . . . . . . . . . . . . Manual 44 | . 5 . 1 . 14 13 . . . . 7 . . . . 4 Terminals 49 | . 5 . . . 18 15 . . . . 7 . . . . 4 Fabricators 12 | . . . . . . 2 . . . . 3 . . . . 7 Repair Stations 12 | . . . . . . 5 . . . . 3 . . . . 4 Recycling Units 7 | . . . . . . 2 . . . . 5 . . . . . Scanalyzers . | . . . . . . . . . . . . . . . . . Garrison Access 5 | . . . . . . 2 . . . . . . . . . 3 Terminal Hacks 35 | . . 1 2 . 7 1 1 . . . 2 . . 21 . . Record 4 | . . . 1 . . 1 . . . . . . . 2 . . Part Schematic 11 | . . . . . . . . . . . 1 . . 10 . . Robot Schematic 6 | . . . . . . . . . . . . . . 6 . . Prototype ID Bank 8 | . . . . . 4 . . . . . 1 . . 3 . . Open Door 2 | . . 1 . . . . 1 . . . . . . . . . Level Access Points 1 | . . . . . 1 . . . . . . . . . . . Branch Access Points 1 | . . . . . 1 . . . . . . . . . . . Locate Traps 1 | . . . . . 1 . . . . . . . . . . . Derelict Proto ID Bank 1 | . . . 1 . . . . . . . . . . . . . Fabricator Hacks 7 | . . . . . . 1 . . . . 3 . . . . 3 Network Status 2 | . . . . . . 1 . . . . 1 . . . . . Load Schematic 3 | . . . . . . . . . . . 1 . . . . 2 Build 2 | . . . . . . . . . . . 1 . . . . 1 Repair Station Hacks 7 | . . . . . . 4 . . . . 1 . . . . 2 Scan Component 4 | . . . . . . 2 . . . . 1 . . . . 1 Repair 3 | . . . . . . 2 . . . . . . . . . 1 Recycling Unit Hacks 1 | . . . . . . . . . . . 1 . . . . . Retrieve Components 1 | . . . . . . . . . . . 1 . . . . . Scanalyzer . | . . . . . . . . . . . . . . . . . Garrison Access Hacks 1 | . . . . . . . . . . . . . . . . 1 Seal Access 1 | . . . . . . . . . . . . . . . . 1 Unauthorized Hacks 9 | . . . . . 3 3 . . . . 3 . . . . . Terminals 8 | . . . . . 3 3 . . . . 2 . . . . . Botnet 7 | . . . . . 3 3 . . . . 1 . . . . . Operators 1 | . . . . . . . . . . . 1 . . . . . Fabricators . | . . . . . . . . . . . . . . . . . Repair Stations . | . . . . . . . . . . . . . . . . . Recycling Units 1 | . . . . . . . . . . . 1 . . . . . Recyclers 1 | . . . . . . . . . . . 1 . . . . . Scanalyzers . | . . . . . . . . . . . . . . . . . Garrison Access . | . . . . . . . . . . . . . . . . . Data Cores Recovered 1 | . . . . . . . . . . . . . . . . 1 Used . | . . . . . . . . . . . . . . . . . Hacking Detections 26 | . 1 . . . 4 10 . . . . 5 . . . . 6 Full Trace Events 5 | . 1 . . . . 1 . . . . 2 . . . . 1 Feedback Events . | . . . . . . . . . . . . . . . . . Feedback Blocked . | . . . . . . . . . . . . . . . . . Robot Schematics Acquired 10 | . . . . . . . . . 4 . . . . 6 . . Robots Built . | . . . . . . . . . . . . . . . . . Authchips . | . . . . . . . . . . . . . . . . . Time . | . . . . . . . . . . . . . . . . . Total Robot Build Rating . | . . . . . . . . . . . . . . . . . Part Schematics Acquired 26 | . . . . . . . . . 15 . 1 . . 10 . . Parts Built 4 | . . . . . . . . . . . 2 . . . . 2 Authchips . | . . . . . . . . . . . . . . . . . Time 234 | . . . . . . . . . . . 106 . . . . 128 Total Part Build Rating 28 | . . . . . . . . . . . 12 . . . . 16 Parts Repaired 3 | . . . . . . 2 . . . . . . . . . 1 Time 120 | . . . . . . 88 . . . . . . . . . 32 Parts Recycled . | . . . . . . . . . . . . . . . . . Recycled Matter . | . . . . . . . . . . . . . . . . . Retrieved Matter . | . . . . . . . . . . . . . . . . . Retrieved Components 1 | . . . . . . . . . . . 1 . . . . . Parts Scanalyzed . | . . . . . . . . . . . . . . . . . Part Schematics Acquired . | . . . . . . . . . . . . . . . . . Parts Damaged . | . . . . . . . . . . . . . . . . . Bothacking | -11 -10 -10 -10 -9 -8 -7 -7 -7 -7 -6 -6 -6 -6 -6 -5 -5 ------------ Run | Yrd Mat Min Exi Min Mat Fac Low Low Zio Pro Fac Low Low Dat Pro Fac Used RIF Installer . | . . . . . . . . . . . . . . . . . Robots Hacked . | . . . . . . . . . . . . . . . . . Non-combat . | . . . . . . . . . . . . . . . . . Combat . | . . . . . . . . . . . . . . . . . Robot Hacks Applied . | . . . . . . . . . . . . . . . . . Relay Couplers Released . | . . . . . . . . . . . . . . . . . Fabnet Peak Effective % . | . . . . . . . . . . . . . . . . . Robots Rewired . | . . . . . . . . . . . . . . . . . Allies Hacked . | . . . . . . . . . . . . . . . . . Hacks Repelled . | . . . . . . . . . . . . . . . . . Allies | -11 -10 -10 -10 -9 -8 -7 -7 -7 -7 -6 -6 -6 -6 -6 -5 -5 -------- Run | Yrd Mat Min Exi Min Mat Fac Low Low Zio Pro Fac Low Low Dat Pro Fac Total Allies 3 | . . 1 . . . . . . . . . . . . . 2 Largest Group 1 | . . 1 . . . . . . . . . . . . . 1 Highest-Rated Group 31 | . . 31 . . . . . . . . . . . . . 26 Highest-Rated Ally 31 | . . 31 . . . . . . . . . . . . . 26 Total Orders 7 | . . . . . . . . . . . 1 . . . . 6 RETURN 7 | . . . . . . . . . . . 1 . . . . 6 Ally Attacks . | . . . . . . . . . . . . . . . . . Total Damage . | . . . . . . . . . . . . . . . . . Kills . | . . . . . . . . . . . . . . . . . Allies Corrupted . | . . . . . . . . . . . . . . . . . Allies Melted . | . . . . . . . . . . . . . . . . . Intel | -11 -10 -10 -10 -9 -8 -7 -7 -7 -7 -6 -6 -6 -6 -6 -5 -5 ------- Run | Yrd Mat Min Exi Min Mat Fac Low Low Zio Pro Fac Low Low Dat Pro Fac Robot Analysis Total . | . . . . . . . . . . . . . . . . . Derelict Logs Recovered 6 | . . 1 . . . . 1 1 . 1 . . . . 2 . Drone Launches 7 | . . . . . . . . . . . 1 . . . . 6 Drone Recoveries 7 | . . . . . . . . . . . 1 . . . . 6 Exploration | -11 -10 -10 -10 -9 -8 -7 -7 -7 -7 -6 -6 -6 -6 -6 -5 -5 ------------- Run | Yrd Mat Min Exi Min Mat Fac Low Low Zio Pro Fac Low Low Dat Pro Fac Turns Passed 12825 | 125 204 844 405 263 929 1416 281 658 1176 555 846 494 512 98 780 3239 Spaces Moved 8230 | 67 125 509 277 179 428 906 203 492 869 334 581 361 403 82 586 1828 Core 3 | 3 . . . . . . . . . . . . . . . . Treads 1562 | 64 125 509 277 179 347 . . . . . . . . . . 61 Legs 6665 | . . . . . 81 906 203 492 869 334 581 361 403 82 586 1767 Wheels . | . . . . . . . . . . . . . . . . . Hover . | . . . . . . . . . . . . . . . . . Flight . | . . . . . . . . . . . . . . . . . Fastest Speed 50 | 50 160 145 145 145 130 130 130 130 127 127 120 120 120 120 120 120 Average Speed 129 | 155 160 146 145 145 147 130 130 130 127 127 121 120 120 120 120 123 Slowest Speed 330 | 160 160 160 145 145 152 130 130 130 130 127 127 120 120 120 120 330 Overloaded Moves . | . . . . . . . . . . . . . . . . . Propulsion Burnouts . | . . . . . . . . . . . . . . . . . Robots Hopped . | . . . . . . . . . . . . . . . . . Cave-ins Triggered 1 | . . . . . . . . . . . . . . . . 1 Exploration Rate (%) 53 | 5 21 90 68 53 47 29 39 70 84 56 18 55 71 69 77 49 Regions Visited 16 Branch Regions 11 Pre-discovered Areas 4 | . . . 1 . . . . . 1 1 . . . 1 . . Known Exits Taken 7 | . . . . . 1 . . . . 1 1 1 1 1 1 . Unknown Exits Taken 9 | 1 1 1 1 1 . 1 1 1 1 . . . . . . . Scrap Searched 23 | . . 1 . 2 . . . 4 3 1 . 4 4 . 4 . Spaces Dug 29 | . . . . . . . . 1 . . 18 . . . . 10 Terrain Destroyed 786 | . . 4 . . . 99 9 15 . 244 106 23 . . 39 247 Melee 12 | . . . . . . . . 1 . . 1 . . . . 10 Projectile 49 | . . 4 . . . . . . . 1 . . . . . 44 AOE 725 | . . . . . . 99 9 14 . 243 105 23 . . 39 193 Terrain Rammed . | . . . . . . . . . . . . . . . . . Walls Destroyed . | . . . . . . . . . . . . . . . . . Machines Disabled . | . . . . . . . . . . . . . . . . . Actions | -11 -10 -10 -10 -9 -8 -7 -7 -7 -7 -6 -6 -6 -6 -6 -5 -5 --------- Run | Yrd Mat Min Exi Min Mat Fac Low Low Zio Pro Fac Low Low Dat Pro Fac Total 9914 | 79 128 581 280 182 676 1124 219 503 942 414 706 418 430 81 657 2494 Wait 990 | . . 38 . . 134 154 . 2 55 44 69 44 25 . 53 372 Move 8214 | 66 124 508 276 178 427 905 202 491 868 333 580 360 402 81 585 1828 Hop . | . . . . . . . . . . . . . . . . . Pick Up 73 | 1 1 4 1 4 10 7 4 . 7 . 10 1 . . 5 18 Fast Attach 63 | 8 3 3 . . 11 12 1 1 2 1 3 . . . . 18 Attach 57 | . . . . . 8 5 1 2 1 4 8 1 . . 1 26 Detach 27 | 1 . . . . 2 2 1 1 2 3 . 1 1 . 1 12 Swap 48 | . . 5 2 . 7 4 . 1 . 6 7 2 1 . 2 11 Drop 104 | . . 7 1 . 23 14 6 1 6 1 15 . . . 5 25 Fire 225 | 3 . 16 . . 20 14 4 3 . 22 9 1 . . 5 128 Melee 100 | . . . . . 32 6 . 1 1 . 5 1 1 . . 53 Ram . | . . . . . . . . . . . . . . . . . Kick 1 | . . . . . . . . . . . . . . . . 1 Crush . | . . . . . . . . . . . . . . . . . Escape Stasis 1 | . . . . . . 1 . . . . . . . . . . Rewire 9 | . . . . . . . . . . . . 7 . . . 2 Trap 2 | . . . . . 2 . . . . . . . . . . . Miscellaneous . | . . . . . . . . . . . . . . . . . Route ------- -11/Scrapyard -10/Materials -10/Mines (discovered 2 exits: [*Mat] / *Exi) -10/Exiles -9/Mines -8/Materials (discovered 3 exits: *Fac x3) -7/Factory (discovered 2 exits: *Fac / *Low) -7/Lower Caves -7/Lower Caves (discovered 2 exits: *Fac / [*Zio]) -7/Zion -6/Proximity Caves -6/Factory (discovered 5 exits: Fac x4 / *Low) -6/Lower Caves -6/Lower Caves -6/Data Miner -5/Proximity Caves -5/Factory (discovered 5 exits: Fac x4 / Upp) History --------- Turn | Location | Event 6 | -11/Scrapyard | Discovered new exit (range 15) 126 | -11/Scrapyard | Entered Materials 314 | -10/Materials | Build established: Mutant 316 | -10/Materials | Discovered new exit (range 9) 330 | -10/Materials | Entered Mines 345 | -10/Mines | Learned location of 1 exit from Materials 383 | -10/Mines | Met a Derelict shopkeep closing up shop 468 | -10/Mines | Discovered new exit (range 9) 665 | -10/Mines | Received a Mining Laser from a helpful Derelict 1168 | -10/Mines | Deemed a non-threat by the Exiles lab entrance 1168 | -10/Mines | Discovered new exit (range 5) 1174 | -10/Mines | Entered Exiles 1209 | -10/Exiles | Met 8R-AWN 1234 | -10/Exiles | Met EX-HEX 1301 | -10/Exiles | Met EX-DEC 1324 | -10/Exiles | Learned location of Zion (-7) 1349 | -10/Exiles | Met EX-BIN 1369 | -10/Exiles | Aligned with FarCom system 1370 | -10/Exiles | Given EX-Vault access code 1404 | -10/Exiles | Opened EX-Vault 1415 | -10/Exiles | Found Longsword +1 1445 | -10/Exiles | Warned to stay clear of 0b10 Research branches 1464 | -10/Exiles | Exiles lab attacked by MAIN.C 1567 | -10/Exiles | Discovered new exit (range 10) 1579 | -10/Exiles | Left Exiles lab with Longsword +1 1579 | -10/Exiles | Entered Mines 1585 | -9/Mines | Met a Derelict bent on vengeance 1620 | -9/Mines | Found a hidden stash of uninstalled traps 1824 | -9/Mines | Discovered new exit (range 13) 1842 | -9/Mines | Entered Materials 1842 | -8/Materials | Evolved 4 slots: Propulsion x2, Utility x2 1843 | -8/Materials | Identified exit to Factory 2771 | -8/Materials | Entered Factory 2771 | -7/Factory | Evolved 2 slots: Utility x2 2831 | -7/Factory | Repaired Gauss Rifle 3126 | -7/Factory | Discovered new exit (range 16) 3152 | -7/Factory | Identified exit to Factory 3643 | -7/Factory | Repaired Imp. Titanium Leg 4087 | -7/Factory | Discovered new exit (range 14) 4187 | -7/Factory | Entered Lower Caves 4338 | -7/Lower Caves | Learned location of 1 exit from Factory 4447 | -7/Lower Caves | Discovered new exit (range 16) 4468 | -7/Lower Caves | Entered another Lower Caves area 4530 | -7/Lower Caves | Found Alien Artifact 4530 | -7/Lower Caves | Identified Core Expander 4530 | -7/Lower Caves | Installed Core Expander, added new Weapon slot 4590 | -7/Lower Caves | Discovered exit to Factory (range 8) 5109 | -7/Lower Caves | Discovered new exit (range 13) 5126 | -7/Lower Caves | Entered Zion 5266 | -7/Zion | Discovered new exit (range 16) 5376 | -7/Zion | Learned Factory emergency access door positions 5423 | -7/Zion | Given A8's code to call for help 5573 | -7/Zion | Found GAL Module 5621 | -7/Zion | Found Prototype Device 5634 | -7/Zion | Identified Mobile Refinery Mk. CCLXVII 5734 | -7/Zion | Rebuked by Imprinter 5822 | -7/Zion | Given the Hacking Drone Bay 5822 | -7/Zion | Found Prototype Device 6302 | -7/Zion | Entered Proximity Caves 6341 | -6/Proximity Caves | Unaware initiated a cargo recovery operation 6397 | -6/Proximity Caves | Spotted B-75 Beast 6715 | -6/Proximity Caves | Attracted the attention of an 0b10 outpost 6765 | -6/Proximity Caves | Build established: Bomber 6786 | -6/Proximity Caves | Destroyed 11 combat bots 6818 | -6/Proximity Caves | Discovered exit to Factory (range 6) 6857 | -6/Proximity Caves | Entered Factory 6857 | -6/Factory | Evolved 2 slots: Power x1, Utility x1 6858 | -6/Factory | Identified exit to Factory 7246 | -6/Factory | Identified Hacking Drone Bay 7497 | -6/Factory | Discovered new exit (range 7) 7507 | -6/Factory | Identified exit to Lower Caves 7547 | -6/Factory | Fabricated Neutrino Core? 7703 | -6/Factory | Entered Lower Caves 7722 | -6/Lower Caves | Spotted B-75 Beast 7801 | -6/Lower Caves | Encountered a Warlord checkpoint 8184 | -6/Lower Caves | Discovered new exit (range 11) 8196 | -6/Lower Caves | Identified exit to Lower Caves 8197 | -6/Lower Caves | Entered another Lower Caves area 8253 | -6/Lower Caves | Build established: Skirmisher 8386 | -6/Lower Caves | Encountered a Warlord checkpoint 8702 | -6/Lower Caves | Discovered new exit (range 6) 8708 | -6/Lower Caves | Identified exit to Data Miner 8709 | -6/Lower Caves | Entered Data Miner 8709 | -6/Data Miner | Discovered new exit (range 6) 8720 | -6/Data Miner | Identified exit to Proximity Caves 8736 | -6/Data Miner | Met Data Miner 8759 | -6/Data Miner | Learned location of Section 7 (-2) 8759 | -6/Data Miner | Acquired the access code to Warlord's prototype stash 8779 | -6/Data Miner | Received God Mode back door access code from Data Miner 8807 | -6/Data Miner | Entered Proximity Caves 8937 | -5/Proximity Caves | Build established: Mutant 9350 | -5/Proximity Caves | Attracted the attention of an 0b10 checkpoint 9554 | -5/Proximity Caves | Learned Factory garrison access intel 9587 | -5/Proximity Caves | Entered Factory 9587 | -5/Factory | Evolved 2 slots: Utility x2 9588 | -5/Factory | Identified exit to Upper Caves 9589 | -5/Factory | Loaded intel: 4 garrison access locations 9625 | -5/Factory | Identified exit to Factory 9879 | -5/Factory | Build established: Skirmisher 10064 | -5/Factory | Fabricated Lgt. Particle Reactor (x2) 10193 | -5/Factory | Repaired Mni. Grenade Launcher 10309 | -5/Factory | Build established: Mutant 11737 | -5/Factory | Lost 3 parts (1p1u1w) 11987 | -5/Factory | First assault squad dispatched 12270 | -5/Factory | Destroyed 8 combat bots 12518 | -5/Factory | Build established: Skirmisher 12659 | -5/Factory | Crushed by falling debris 12659 | -5/Factory | Core integrity fell below 50% 12659 | -5/Factory | System corruption reached 10% 12695 | -5/Factory | Lost 5 parts (1n3u1w) 12807 | -5/Factory | Core integrity fell below 20% 12826 | -5/Factory | Destroyed by L-41 Fighter with Axe Last Messages --------------- 12785_ K-01 Serf collects debris. 12788_ Acquired Arm. Medium Treads. 12790_ Slug penetrates Fabricator. 12793_ Slug penetrates B-60 Warrior. 12793_ Slug penetrates Fabricator. 12796_ Slug penetrates B-60 Warrior. 12799_ B-60 Warrior Imp. Medium Armor Plating blasted off. 12802_ Slug penetrates L-41 Fighter. 12802_ B-60 Warrior Imp. Treads blasted off. 12805_ Slug penetrates B-60 Warrior. 12805_ B-60 Warrior destroyed. 12806_ Acquired 54 matter. 12808_ Slug penetrates B-60 Warrior. 12812_ System corrupted: Component data lost. 12814_ Slug penetrates B-60 Warrior. 12815_ Mobile Refinery Mk. CCLXVII severed. 12817_ Slug penetrates B-60 Warrior. 12820_ B-60 Warrior destroyed. 12824_ Slug penetrates G-67 Veteran. Map ----- +----------------------------------------------------+ | #???????# ??????????????? | | #???????# #???????????????? | | #???????# #???????????????? | | #???????# #???????????????? | | ####????# #???????????????? | | #????# #???????????????? | | #????# #???????????????? | | #????# #???????????????? | | #????# #???????????????? | | ###### ##### #???????????????? | | #???# ###########?????? | | #???# ^ ?????? | | #???# %^ ?????? | | # # # ############???# ## "" """ """ ?????????? | | #### ###???????????# ## "F """ """??????????? | | #???????????# ## """ """^""" ?????????? | | #???????????# ## """ """ """ """ ?????? | | #???????????# ?# #???? | | !#???????????# ?# #???? | | % #?????????### ?;% #???? | | # #####????######;#+?# #???? | | #????????# ?; ########### ????? | | #????????# #%! #???????????????? | | #????????# #== #???????????????? | | #????????# %g!l +???????????????? | | #????????# ;@%%% ; ????????? | | #????????# # =% #???????????????? | | #????????# ??######## ??????????? | | #????????# ????????????+#######?????????? | | ######????????####???????????????????????????????? | | ?????????????????????????????????????????????????? | | ?????????????????????????????????????????????????? | | ?????????????????????????????????????????????????? | | ?????????????????????????????????????????????????? | | | | | | | | | | | | | | | | | | | | | | | | | | | | | | | | | +----------------------------------------------------+ Best States ------------- Heat Dissipation 71 Energy Generation 41 Energy Capacity 530 Matter Stores 300 Matter Capacity 300 Sight Range 16 Robot Scan Range 16 Terrain Scan Range 16 Terrain Scan Density 10 ECM Strength 1 Jamming Range 14 Corruption Block 15 Armor Coverage 600 Resistance: EX 25 Utility Shielding 66 Weapon Shielding 66 Evasion (%) 55 Targeting Accuracy 12 Melee Accuracy 12 Core Analysis 6 Recoil Reduction 4 Kinecelleration 30 Offensive Hacking 11 Defensive Hacking 11 Item Schematics ----------------- Great Axe | -7/Zion | Archive Beamcaster | -7/Zion | Archive Imp. Cooling System | -7/Zion | Archive Hpw. Shock Rifle | -7/Zion | Archive Greatsword | -7/Zion | Archive Lrn. Proton Cannon | -7/Zion | Archive Imp. Coolant Injector | -7/Zion | Archive Adv. Assault Cannon | -7/Zion | Archive Plasma Flamer | -7/Zion | Archive Imp. Salvage Targeting Computer | -7/Zion | Archive Mak. Hover Unit | -7/Zion | Archive Adv. Terrain Scanner | -7/Zion | Archive Matter Filter | -7/Zion | Archive Powered Hammer | -7/Zion | Archive Enh. Optical Array | -7/Zion | Archive Neutrino Core | -6/Factory | Hacked Combat Drone Bay | -6/Data Miner | Free Lgt. Regenerative Plating | -6/Data Miner | Free Cld. Gravmag System | -6/Data Miner | Free Prc. Matter Filter | -6/Data Miner | Free Enh. Force Rifle | -6/Data Miner | Free Field Propulsion Array | -6/Data Miner | Free Imp. Armor Integrity Analyzer | -6/Data Miner | Free Dispersion Rifle | -6/Data Miner | Free Recoil Nullifier | -6/Data Miner | Free Impulse Thruster Array | -6/Data Miner | Free Robot Schematics ------------------ S-27 Virus | -7/Zion | Archive B-48 Gladiator | -7/Zion | Archive L-41 Fighter | -7/Zion | Archive H-77 Assassin | -7/Zion | Archive M-22 Extractor | -6/Data Miner | Free E-15 Imp | -6/Data Miner | Free X-72 Disruptor | -6/Data Miner | Free B-60 Warrior | -6/Data Miner | Free G-67 Veteran | -6/Data Miner | Free A-15 Conveyor | -6/Data Miner | Free Fabricated ------------ Neutrino Core | x2 | -6/Factory Lgt. Particle Reactor | x2 | -5/Factory | Preloaded Alien Tech Used ----------------- Core Expander Achievements -------------- None Challenges ------------ None Game ------ Seed IonicAngularStorm Manual? 0 Play Time 01:32:32 Cumulative 211.2 hours Start 2024.05.22 @ 14:39:33 End 2024.05.22 @ 16:14:32 Sessions 1 Manual Loads 0 Difficulty Rogue Special Mode None Game No. 204 Rogue 199 Adventurer 5 Explorer 0 Win Type - Total 3 Types 2/0/0/1/0/0/0/0/0 Lore% 58 Gallery% 78 Achievement% 56 Wizard Run 0 Options --------- Layout 2 ASCII 0 Keyboard 0 Movement Arrows Keybinds 0 Fullscreen 1 Font 24/Terminus Map View 50x44 Zoom Use 0% Tactical HUD 1 Map Filters NONE Filters NONE Steam 1 RUN: 048b6838-bdf3-4c6c-8b06-db294f70e166